fUST/lending_fUST_20260508
["ID","MTS","AMOUNT","RATE_DAILY","PERIOD"]
[421813333,1778179848000,-500.0,0.00011506,2]
[421813340,1778179848000,-1407.58,0.00011506,2]
[421813341,1778179848000,-500.0,0.00011506,2]
[421813358,1778180726000,6810.0306589,7.6e-05,2]
[421813453,1778181033000,-500.0,0.00010958,2]
[421813408,1778181033000,-300.0,9.612e-05,2]
[421813422,1778181033000,-300.0,9.612e-05,2]
[421813424,1778181033000,-300.0,9.612e-05,2]
[421813420,1778181033000,-300.0,9.612e-05,2]
[421813406,1778181033000,-300.0,9.612e-05,2]
[421813402,1778181033000,-300.0,9.612e-05,2]
[421813404,1778181033000,-300.0,9.612e-05,2]
[421813400,1778181033000,-300.0,9.612e-05,2]
[421813394,1778181033000,-442.33622972,9.285e-05,2]
[421813396,1778181033000,-1200.0,9.424e-05,2]
[421813390,1778181033000,-441.70512035,9.146e-05,2]
[421813392,1778181033000,-3729.59652627,9.146e-05,2]
[421813455,1778181033000,-500.0,0.00010958,2]
[421813387,1778181033000,-828.69835338,9.146e-05,2]
[421813385,1778181033000,-458.20547818,9.055e-05,2]
[421813410,1778181033000,-300.0,9.612e-05,2]
[421813412,1778181033000,-300.0,9.612e-05,2]
[421813398,1778181033000,-3125.63975254,9.425e-05,2]
[421813416,1778181033000,-300.0,9.612e-05,2]
[421813414,1778181033000,-300.0,9.612e-05,2]
[421813449,1778181033000,-500.0,0.00010957,2]
[421813440,1778181033000,-200.0,0.00010326,7]
[421813441,1778181033000,-68594.03196203,0.00010858,2]
[421813445,1778181033000,-322.69320164,0.00010957,2]
[421813438,1778181033000,-200.0,0.00010326,2]
[421813443,1778181033000,-500.0,0.00010957,2]
[421813447,1778181033000,-500.0,0.00010957,2]
[421813434,1778181033000,-6682.84235341,0.0001,2]
[421813436,1778181033000,-151.0,0.0001023,2]
[421813432,1778181033000,-300.0,9.999e-05,2]
[421813430,1778181033000,-300.0,9.999e-05,2]
[421813428,1778181033000,-300.0,9.612e-05,2]
[421813426,1778181033000,-300.0,9.612e-05,2]
[421813451,1778181033000,-577.75539082,0.00010957,2]
[421813418,1778181033000,-300.0,9.612e-05,2]
[421813477,1778181034000,-500.0,0.00010958,2]
[421813475,1778181034000,-500.0,0.00010958,2]
[421813466,1778181034000,-500.0,0.00010958,2]
[421813464,1778181034000,-500.0,0.00010958,2]
[421813468,1778181034000,-27.81058471,0.00010958,2]
[421813458,1778181034000,-500.0,0.00010958,2]
[421813460,1778181034000,-500.0,0.00010958,2]
[421813462,1778181034000,-500.0,0.00010958,2]
[421813471,1778181034000,-472.18941529,0.00010958,2]
[421813457,1778181034000,-500.0,0.00010958,2]
[421813479,1778181034000,-500.0,0.00010958,2]
[421813473,1778181034000,-500.0,0.00010958,2]
[421813480,1778181034000,-689.57,0.00010958,2]
[421813488,1778181034000,-500.0,0.00010958,2]
[421813484,1778181034000,-1379.66,0.00010958,2]
[421813487,1778181034000,-500.0,0.00010958,2]
[421813493,1778181034000,-381.66,0.00010958,2]
[421813486,1778181034000,-500.0,0.00010958,2]
[421813490,1778181034000,-530.84,0.00010958,2]
[421813489,1778181034000,-500.0,0.00010958,2]
[421813492,1778181034000,-614.25,0.00010958,2]
[421813491,1778181034000,-500.0,0.00010958,2]
[421813494,1778181034000,-500.0,0.00010958,2]
[421813495,1778181034000,-500.0,0.00010958,2]
[421813496,1778181034000,-500.0,0.00010958,2]
[421813498,1778181034000,-157.12598139,0.00010958,2]
[421813497,1778181034000,-604.3,0.00010958,2]
[421813482,1778181034000,-500.0,0.00010958,2]
[421813509,1778181038000,-1213.72,0.00010958,2]
[421813508,1778181038000,-500.0,0.00010958,2]
[421813507,1778181038000,-154.13401861,0.00010958,2]
[421813512,1778181038000,-117.49801831,0.00010958,2]
[421813511,1778181038000,-382.50198169,0.00010958,2]
[421813513,1778181038000,-386.38339859,0.00010958,2]
[421813510,1778181038000,-599.45,0.00010958,2]
[421813522,1778181040000,-1144.06,0.00010958,2]
[421813521,1778181040000,-19.14660141,0.00010958,2]
[421813524,1778181040000,-500.0,0.00010958,2]
[421813523,1778181040000,-500.0,0.00010958,2]
[421813525,1778181040000,-500.0,0.00010958,2]
[421813529,1778181040000,-500.0,0.00010958,2]
[421813528,1778181040000,-500.0,0.00010958,2]
[421813527,1778181040000,-500.0,0.00010958,2]
[421813530,1778181040000,-500.0,0.00010958,2]
[421813531,1778181040000,-16.88930041,0.00010958,2]
[421813526,1778181040000,-500.0,0.00010958,2]
[421813559,1778181043000,-388.64990095,0.00010958,2]
[421813714,1778181049000,-500.0,0.00010958,2]
[421813710,1778181049000,-500.0,0.00010958,2]
[421813709,1778181049000,-94.46079864,0.00010958,2]
[421813711,1778181049000,-227.83011938,0.00010958,2]
[421813712,1778181049000,-272.16988062,0.00010958,2]
[421813713,1778181049000,-500.0,0.00010958,2]
[421813716,1778181049000,-500.0,0.00010958,2]
[421813708,1778181049000,-208.61244762,0.00010848,2]
[421813717,1778181049000,-500.0,0.00010958,2]
[421813723,1778181049000,-630.37,0.00010958,2]
[421813720,1778181049000,-500.0,0.00010958,2]
[421813718,1778181049000,-632.1,0.00010958,2]
[421813719,1778181049000,-500.0,0.00010958,2]
[421813721,1778181049000,-529.53,0.00010958,2]
[421813722,1778181049000,-500.0,0.00010958,2]
[421813724,1778181049000,-420.9087892,0.00010958,2]
[421813715,1778181049000,-500.0,0.00010958,2]
[421813869,1778182235000,-5000.0,9.311e-05,2]
[421813871,1778182236000,-462.13958635,9.615e-05,2]
[421813870,1778182236000,-151.0,9.405e-05,2]
[421813872,1778182236000,-152.0,0.00010326,7]
[421813873,1778182236000,-300.0,0.00010328,2]
[421813874,1778182236000,-241.69716579,0.00010329,2]
[421813876,1778182236000,-300.0,0.00010329,2]
[421813878,1778182236000,-92.01361899,0.00010329,2]
[421813877,1778182236000,-207.98638101,0.00010329,2]
[421813879,1778182236000,-170.30716579,0.00010329,2]
[421813875,1778182236000,-58.30283421,0.00010329,2]
[421813953,1778182240000,-300.0,0.00010329,2]
[421813959,1778182240000,-3376.57288758,0.00010412,2]
[421813958,1778182240000,-411.78042942,0.00010329,2]
[421813960,1778182240000,-11531.57230464,0.000105,2]
[421813961,1778182240000,-1825.08070627,0.000105,2]
[421813954,1778182240000,-300.0,0.00010329,2]
[421813955,1778182240000,-300.0,0.00010329,2]
[421813962,1778182240000,-560.78235578,0.000105,2]
[421813935,1778182240000,-142.23928404,0.00010329,2]
[421813944,1778182240000,-300.0,0.00010329,2]
[421813952,1778182240000,-300.0,0.00010329,2]
[421813942,1778182240000,-157.76071596,0.00010329,2]
[421813951,1778182240000,-300.0,0.00010329,2]
[421813948,1778182240000,-300.0,0.00010329,2]
[421813950,1778182240000,-300.0,0.00010329,2]
[421813933,1778182240000,-129.69283421,0.00010329,2]
[421813957,1778182240000,-600.0,0.00010329,2]
[421813946,1778182240000,-300.0,0.00010329,2]
[421813964,1778182240000,-231.2639757,0.000105,2]
[421813956,1778182240000,-300.0,0.00010329,2]
[421813963,1778182240000,-7343.566336,0.000105,2]
[421813966,1778182240000,-391.23264866,0.000105,2]
[421813982,1778182240000,-500.0,0.00010653,2]
[421813983,1778182240000,-500.0,0.00010653,2]
[421813981,1778182240000,-500.0,0.00010653,2]
[421813976,1778182240000,-500.0,0.00010653,2]
[421813974,1778182240000,-500.0,0.00010653,2]
[421813970,1778182240000,-559.89922848,0.00010605,2]
[421813971,1778182240000,-559.89922848,0.00010631,2]
[421813972,1778182240000,-100000.0,0.00010648,2]
[421813975,1778182240000,-500.0,0.00010653,2]
[421813968,1778182240000,-559.89922852,0.00010553,2]
[421813979,1778182240000,-500.0,0.00010653,2]
[421813978,1778182240000,-500.0,0.00010653,2]
[421813980,1778182240000,-500.0,0.00010653,2]
[421813977,1778182240000,-500.0,0.00010653,2]
[421813969,1778182240000,-559.89922848,0.00010579,2]
[421813965,1778182240000,-362.56922874,0.000105,2]
[421813973,1778182240000,-321.967485,0.00010653,2]
[421813967,1778182240000,-409.98256591,0.000105,2]
[421814031,1778182241000,-1716.24,0.00010958,2]
[421814033,1778182241000,-500.0,0.00010958,2]
[421814032,1778182241000,-500.0,0.00010958,2]
[421814022,1778182241000,-500.0,0.00010958,2]
[421814015,1778182241000,-500.0,0.00010958,2]
[421814016,1778182241000,-500.0,0.00010958,2]
[421814018,1778182241000,-500.0,0.00010958,2]
[421814019,1778182241000,-500.0,0.00010958,2]
[421814013,1778182241000,-500.0,0.00010958,2]
[421814029,1778182241000,-500.0,0.00010958,2]
[421814017,1778182241000,-500.0,0.00010958,2]
[421814025,1778182241000,-500.0,0.00010958,2]
[421814035,1778182241000,-500.0,0.00010958,2]
[421814023,1778182241000,-706.38,0.00010958,2]
[421814027,1778182241000,-500.0,0.00010958,2]
[421814021,1778182241000,-500.0,0.00010958,2]
[421814024,1778182241000,-500.0,0.00010958,2]
[421814026,1778182241000,-500.0,0.00010958,2]
[421814028,1778182241000,-500.0,0.00010958,2]
[421814034,1778182241000,-500.0,0.00010958,2]
[421814010,1778182241000,-500.0,0.00010958,2]
[421814036,1778182241000,-500.0,0.00010958,2]
[421814048,1778182241000,-500.0,0.00010958,2]
[421814038,1778182241000,-503.08,0.00010958,2]
[421814042,1778182241000,-500.0,0.00010958,2]
[421814030,1778182241000,-500.0,0.00010958,2]
[421814012,1778182241000,-500.0,0.00010958,2]
[421814006,1778182241000,-500.0,0.00010958,2]
[421814014,1778182241000,-500.0,0.00010958,2]
[421814037,1778182241000,-594.46079864,0.00010958,2]
[421813984,1778182241000,-500.0,0.00010653,2]
[421813994,1778182241000,-300.0,0.00010653,2]
[421813985,1778182241000,-500.0,0.00010653,2]
[421813993,1778182241000,-500.0,0.00010653,2]
[421813992,1778182241000,-500.0,0.00010653,2]
[421813986,1778182241000,-610.45657963,0.00010653,2]
[421813995,1778182241000,-559.89922848,0.00010657,2]
[421813988,1778182241000,-500.0,0.00010653,2]
[421813989,1778182241000,-500.0,0.00010653,2]
[421813991,1778182241000,-500.0,0.00010653,2]
[421813990,1778182241000,-500.0,0.00010653,2]
[421814008,1778182241000,-500.0,0.00010958,2]
[421813997,1778182241000,-6441.26911092,0.00010779,2]
[421813996,1778182241000,-236.74,0.00010757,2]
[421814005,1778182241000,-500.0,0.00010958,2]
[421814002,1778182241000,-500.0,0.00010958,2]
[421813998,1778182241000,-1115.5239323,0.00010957,2]
[421814001,1778182241000,-2520.3178,0.00010958,2]
[421813999,1778182241000,-155.0,0.00010957,2]
[421814000,1778182241000,-1121.4760774,0.00010957,2]
[421814003,1778182241000,-500.0,0.00010958,2]
[421814004,1778182241000,-500.0,0.00010958,2]
[421814009,1778182241000,-500.0,0.00010958,2]
[421814011,1778182241000,-500.0,0.00010958,2]
[421814020,1778182241000,-500.0,0.00010958,2]
[421814007,1778182241000,-500.0,0.00010958,2]
[421814039,1778182241000,-500.0,0.00010958,2]
[421814065,1778182241000,-1453.93,0.00010958,2]
[421814047,1778182241000,-500.0,0.00010958,2]
[421814075,1778182241000,-500.0,0.00010958,2]
[421814086,1778182241000,-500.0,0.00010958,2]
[421814076,1778182241000,-500.0,0.00010958,2]
[421814085,1778182241000,-500.0,0.00010958,2]
[421814077,1778182241000,-500.0,0.00010958,2]
[421814074,1778182241000,-500.0,0.00010958,2]
[421814079,1778182241000,-500.0,0.00010958,2]
[421814078,1778182241000,-654.4,0.00010958,2]
[421814083,1778182241000,-500.0,0.00010958,2]
[421814080,1778182241000,-500.0,0.00010958,2]
[421814084,1778182241000,-500.0,0.00010958,2]
[421814081,1778182241000,-557.04,0.00010958,2]
[421814072,1778182241000,-500.0,0.00010958,2]
[421814082,1778182241000,-500.0,0.00010958,2]
[421814087,1778182241000,-500.0,0.00010958,2]
[421814092,1778182241000,-724.87,0.00010958,2]
[421814091,1778182241000,-500.0,0.00010958,2]
[421814090,1778182241000,-500.0,0.00010958,2]
[421814088,1778182241000,-1424.76,0.00010958,2]
[421814094,1778182241000,-500.0,0.00010958,2]
[421814096,1778182241000,-500.0,0.00010958,2]
[421814093,1778182241000,-500.0,0.00010958,2]
[421814095,1778182241000,-597.97,0.00010958,2]
[421814098,1778182241000,-500.0,0.00010958,2]
[421814097,1778182241000,-500.0,0.00010958,2]
[421814099,1778182241000,-500.0,0.00010958,2]
[421814089,1778182241000,-500.0,0.00010958,2]
[421814071,1778182241000,-566.03,0.00010958,2]
[421814043,1778182241000,-500.0,0.00010958,2]
[421814068,1778182241000,-500.0,0.00010958,2]
[421814069,1778182241000,-500.0,0.00010958,2]
[421814041,1778182241000,-500.0,0.00010958,2]
[421814044,1778182241000,-500.0,0.00010958,2]
[421814045,1778182241000,-500.0,0.00010958,2]
[421814040,1778182241000,-500.0,0.00010958,2]
[421814046,1778182241000,-500.0,0.00010958,2]
[421814050,1778182241000,-540.52,0.00010958,2]
[421814060,1778182241000,-500.0,0.00010958,2]
[421814052,1778182241000,-500.0,0.00010958,2]
[421814053,1778182241000,-500.0,0.00010958,2]
[421814055,1778182241000,-500.0,0.00010958,2]
[421814057,1778182241000,-500.0,0.00010958,2]
[421814051,1778182241000,-500.0,0.00010958,2]
[421814049,1778182241000,-500.0,0.00010958,2]
[421814056,1778182241000,-784.25,0.00010958,2]
[421814054,1778182241000,-500.0,0.00010958,2]
[421814070,1778182241000,-286.53138255,0.00010958,2]
[421814062,1778182241000,-500.0,0.00010958,2]
[421814066,1778182241000,-500.0,0.00010958,2]
[421814100,1778182241000,-500.0,0.00010958,2]
[421814067,1778182241000,-500.0,0.00010958,2]
[421814064,1778182241000,-555.78,0.00010958,2]
[421814073,1778182241000,-500.0,0.00010958,2]
[421814061,1778182241000,-500.0,0.00010958,2]
[421814059,1778182241000,-500.0,0.00010958,2]
[421814058,1778182241000,-668.21,0.00010958,2]
[421814063,1778182241000,-500.0,0.00010958,2]
[421814142,1778182242000,-500.0,0.00010958,2]
[421814148,1778182242000,-500.0,0.00010958,2]
[421814141,1778182242000,-500.0,0.00010958,2]
[421814140,1778182242000,-500.0,0.00010958,2]
[421814131,1778182242000,-500.0,0.00010958,2]
[421814134,1778182242000,-500.0,0.00010958,2]
[421814128,1778182242000,-500.0,0.00010958,2]
[421814133,1778182242000,-544.5,0.00010958,2]
[421814132,1778182242000,-3652.74,0.00010958,2]
[421814149,1778182242000,-500.0,0.00010958,2]
[421814138,1778182242000,-500.0,0.00010958,2]
[421814139,1778182242000,-500.0,0.00010958,2]
[421814154,1778182242000,-500.0,0.00010958,2]
[421814144,1778182242000,-500.0,0.00010958,2]
[421814145,1778182242000,-500.0,0.00010958,2]
[421814143,1778182242000,-500.0,0.00010958,2]
[421814146,1778182242000,-500.0,0.00010958,2]
[421814150,1778182242000,-500.0,0.00010958,2]
[421814151,1778182242000,-1310.46,0.00010958,2]
[421814160,1778182242000,-643.95,0.00010958,2]
[421814152,1778182242000,-1118.08,0.00010958,2]
[421814161,1778182242000,-3596.63,0.00010958,2]
[421814153,1778182242000,-1030.44,0.00010958,2]
[421814159,1778182242000,-2650.19,0.00010958,2]
[421814163,1778182242000,-1007.9,0.00010958,2]
[421814129,1778182242000,-1819.75,0.00010958,2]
[421814147,1778182242000,-500.0,0.00010958,2]
[421814135,1778182242000,-500.0,0.00010958,2]
[421814119,1778182242000,-500.0,0.00010958,2]
[421814127,1778182242000,-4320.24,0.00010958,2]
[421814111,1778182242000,-500.0,0.00010958,2]
[421814158,1778182242000,-1435.05,0.00010958,2]
[421814101,1778182242000,-500.0,0.00010958,2]
[421814110,1778182242000,-500.0,0.00010958,2]
[421814103,1778182242000,-500.0,0.00010958,2]
[421814104,1778182242000,-897.8,0.00010958,2]
[421814109,1778182242000,-1260.11,0.00010958,2]
[421814108,1778182242000,-500.0,0.00010958,2]
[421814105,1778182242000,-500.0,0.00010958,2]
[421814107,1778182242000,-500.0,0.00010958,2]
[421814106,1778182242000,-500.0,0.00010958,2]
[421814112,1778182242000,-456.9651842,0.00010958,2]
[421814115,1778182242000,-500.0,0.00010958,2]
[421814124,1778182242000,-500.0,0.00010958,2]
[421814118,1778182242000,-500.0,0.00010958,2]
[421814123,1778182242000,-500.0,0.00010958,2]
[421814113,1778182242000,-500.0,0.00010958,2]
[421814114,1778182242000,-500.0,0.00010958,2]
[421814116,1778182242000,-500.0,0.00010958,2]
[421814121,1778182242000,-500.0,0.00010958,2]
[421814122,1778182242000,-500.0,0.00010958,2]
[421814117,1778182242000,-500.0,0.00010958,2]
[421814120,1778182242000,-532.49559298,0.00010958,2]
[421814137,1778182242000,-500.0,0.00010958,2]
[421814136,1778182242000,-1120.64,0.00010958,2]
[421814126,1778182242000,-500.0,0.00010958,2]
[421814125,1778182242000,-500.0,0.00010958,2]
[421814130,1778182242000,-572.82,0.00010958,2]
[421814102,1778182242000,-500.0,0.00010958,2]
[421814155,1778182242000,-500.0,0.00010958,2]
[421814156,1778182242000,-500.0,0.00010958,2]
[421814200,1778182242000,-997.29,0.00010958,2]
[421814194,1778182242000,-500.0,0.00010958,2]
[421814201,1778182242000,-1413.93,0.00010958,2]
[421814202,1778182242000,-948.33,0.00010958,2]
[421814203,1778182242000,-2159.8,0.00010958,2]
[421814204,1778182242000,-721.28,0.00010958,2]
[421814212,1778182242000,-500.0,0.00010958,2]
[421814210,1778182242000,-1231.64,0.00010958,2]
[421814206,1778182242000,-2378.58,0.00010958,2]
[421814205,1778182242000,-560.38343331,0.00010958,2]
[421814209,1778182242000,-529.63,0.00010958,2]
[421814211,1778182242000,-500.0,0.00010958,2]
[421814207,1778182242000,-960.04,0.00010958,2]
[421814208,1778182242000,-500.0,0.00010958,2]
[421814213,1778182242000,-2102.55,0.00010958,2]
[421814215,1778182242000,-500.0,0.00010958,2]
[421814216,1778182242000,-500.0,0.00010958,2]
[421814214,1778182242000,-500.0,0.00010958,2]
[421814217,1778182242000,-1364.72,0.00010958,2]
[421814219,1778182242000,-500.0,0.00010958,2]
[421814218,1778182242000,-500.0,0.00010958,2]
[421814220,1778182242000,-500.0,0.00010958,2]
[421814223,1778182242000,-155.0,0.00011086,2]
[421814221,1778182242000,-500.0,0.00010958,2]
[421814222,1778182242000,-155.0,0.00011021,2]
[421814157,1778182242000,-1121.4,0.00010958,2]
[421814225,1778182242000,-155.0,0.0001115,2]
[421814199,1778182242000,-500.0,0.00010958,2]
[421814197,1778182242000,-857.98,0.00010958,2]
[421814224,1778182242000,-6743.43155288,0.00011145,2]
[421814196,1778182242000,-1425.23,0.00010958,2]
[421814198,1778182242000,-500.0,0.00010958,2]
[421814175,1778182242000,-500.0,0.00010958,2]
[421814164,1778182242000,-500.0,0.00010958,2]
[421814170,1778182242000,-939.85,0.00010958,2]
[421814168,1778182242000,-1821.61,0.00010958,2]
[421814167,1778182242000,-500.0,0.00010958,2]
[421814172,1778182242000,-1877.31,0.00010958,2]
[421814171,1778182242000,-500.0,0.00010958,2]
[421814166,1778182242000,-500.0,0.00010958,2]
[421814173,1778182242000,-500.0,0.00010958,2]
[421814169,1778182242000,-500.0,0.00010958,2]
[421814174,1778182242000,-677.83,0.00010958,2]
[421814177,1778182242000,-500.0,0.00010958,2]
[421814165,1778182242000,-806.48,0.00010958,2]
[421814180,1778182242000,-1913.1,0.00010958,2]
[421814189,1778182242000,-500.0,0.00010958,2]
[421814193,1778182242000,-500.0,0.00010958,2]
[421814184,1778182242000,-500.0,0.00010958,2]
[421814186,1778182242000,-845.32,0.00010958,2]
[421814182,1778182242000,-3686.34,0.00010958,2]
[421814181,1778182242000,-534.7,0.00010958,2]
[421814195,1778182242000,-500.0,0.00010958,2]
[421814178,1778182242000,-799.83,0.00010958,2]
[421814192,1778182242000,-748.84,0.00010958,2]
[421814176,1778182242000,-500.0,0.00010958,2]
[421814179,1778182242000,-18339.99,0.00010958,2]
[421814183,1778182242000,-1083.36,0.00010958,2]
[421814190,1778182242000,-544.25600752,0.00010958,2]
[421814256,1778182243000,-500.0,0.00011232,2]
[421814257,1778182243000,-500.0,0.00011232,2]
[421814254,1778182243000,-500.0,0.00011232,2]
[421814263,1778182243000,-500.0,0.00011232,2]
[421814261,1778182243000,-272.39,0.00011232,2]
[421814266,1778182243000,-500.0,0.00011232,2]
[421814259,1778182243000,-500.0,0.00011232,2]
[421814260,1778182243000,-500.0,0.00011232,2]
[421814264,1778182243000,-540.52,0.00011232,2]
[421814262,1778182243000,-227.83011938,0.00011232,2]
[421814258,1778182243000,-500.0,0.00011232,2]
[421814269,1778182243000,-668.21,0.00011232,2]
[421814278,1778182243000,-500.0,0.00011232,2]
[421814280,1778182243000,-654.4,0.00011232,2]
[421814279,1778182243000,-523.1,0.00011232,2]
[421814267,1778182243000,-500.0,0.00011232,2]
[421814273,1778182243000,-555.78,0.00011232,2]
[421814270,1778182243000,-500.0,0.00011232,2]
[421814272,1778182243000,-445.49,0.00011232,2]
[421814274,1778182243000,-1453.93,0.00011232,2]
[421814276,1778182243000,-566.03,0.00011232,2]
[421814275,1778182243000,-500.0,0.00011232,2]
[421814277,1778182243000,-239.57,0.00011232,2]
[421814265,1778182243000,-500.0,0.00011232,2]
[421814268,1778182243000,-784.25,0.00011232,2]
[421814255,1778182243000,-503.08,0.00011232,2]
[421814233,1778182243000,-500.0,0.00011232,2]
[421814253,1778182243000,-277.71,0.00011232,2]
[421814282,1778182243000,-557.04,0.00011232,2]
[421814226,1778182243000,-155.0,0.00011215,2]
[421814227,1778182243000,-2520.3178,0.00011232,2]
[421814228,1778182243000,-500.0,0.00011232,2]
[421814229,1778182243000,-500.0,0.00011232,2]
[421814238,1778182243000,-500.0,0.00011232,2]
[421814230,1778182243000,-500.0,0.00011232,2]
[421814234,1778182243000,-500.0,0.00011232,2]
[421814235,1778182243000,-500.0,0.00011232,2]
[421814231,1778182243000,-500.0,0.00011232,2]
[421814237,1778182243000,-633.26,0.00011232,2]
[421814232,1778182243000,-500.0,0.00011232,2]
[421814236,1778182243000,-500.0,0.00011232,2]
[421814250,1778182243000,-1716.24,0.00011232,2]
[421814240,1778182243000,-500.0,0.00011232,2]
[421814241,1778182243000,-544.42,0.00011232,2]
[421814251,1778182243000,-500.0,0.00011232,2]
[421814252,1778182243000,-577.39,0.00011232,2]
[421814242,1778182243000,-500.0,0.00011232,2]
[421814239,1778182243000,-500.0,0.00011232,2]
[421814247,1778182243000,-500.0,0.00011232,2]
[421814246,1778182243000,-500.0,0.00011232,2]
[421814243,1778182243000,-706.38,0.00011232,2]
[421814244,1778182243000,-500.0,0.00011232,2]
[421814248,1778182243000,-450.21,0.00011232,2]
[421814249,1778182243000,-500.0,0.00011232,2]
[421814292,1778182243000,-500.0,0.00011232,2]
[421814271,1778182243000,-500.0,0.00011232,2]
[421814281,1778182243000,-500.0,0.00011232,2]
[421814315,1778182243000,-4320.24,0.00011232,2]
[421814317,1778182243000,-1819.75,0.00011232,2]
[421814316,1778182243000,-500.0,0.00011232,2]
[421814314,1778182243000,-500.0,0.00011232,2]
[421814320,1778182243000,-3652.74,0.00011232,2]
[421814330,1778182243000,-500.0,0.00011232,2]
[421814322,1778182243000,-500.0,0.00011232,2]
[421814319,1778182243000,-500.0,0.00011232,2]
[421814323,1778182243000,-1120.64,0.00011232,2]
[421814321,1778182243000,-544.5,0.00011232,2]
[421814324,1778182243000,-500.0,0.00011232,2]
[421814325,1778182243000,-500.0,0.00011232,2]
[421814327,1778182243000,-500.0,0.00011232,2]
[421814328,1778182243000,-500.0,0.00011232,2]
[421814329,1778182243000,-500.0,0.00011232,2]
[421814332,1778182243000,-1310.46,0.00011232,2]
[421814331,1778182243000,-376.91,0.00011232,2]
[421814334,1778182243000,-1030.44,0.00011232,2]
[421814335,1778182243000,-500.0,0.00011232,2]
[421814333,1778182243000,-1118.08,0.00011232,2]
[421814337,1778182243000,-500.0,0.00011232,2]
[421814340,1778182243000,-2650.19,0.00011232,2]
[421814336,1778182243000,-500.0,0.00011232,2]
[421814339,1778182243000,-1435.05,0.00011232,2]
[421814283,1778182243000,-500.0,0.00011232,2]
[421814307,1778182243000,-500.0,0.00011232,2]
[421814312,1778182243000,-500.0,0.00011232,2]
[421814326,1778182243000,-500.0,0.00011232,2]
[421814313,1778182243000,-500.0,0.00011232,2]
[421814318,1778182243000,-572.82,0.00011232,2]
[421814286,1778182243000,-500.0,0.00011232,2]
[421814290,1778182243000,-500.0,0.00011232,2]
[421814284,1778182243000,-500.0,0.00011232,2]
[421814289,1778182243000,-500.0,0.00011232,2]
[421814291,1778182243000,-597.97,0.00011232,2]
[421814288,1778182243000,-724.87,0.00011232,2]
[421814285,1778182243000,-1424.76,0.00011232,2]
[421814294,1778182243000,-500.0,0.00011232,2]
[421814338,1778182243000,-1121.4,0.00011232,2]
[421814304,1778182243000,-1260.11,0.00011232,2]
[421814305,1778182243000,-500.0,0.00011232,2]
[421814303,1778182243000,-500.0,0.00011232,2]
[421814287,1778182243000,-500.0,0.00011232,2]
[421814308,1778182243000,-500.0,0.00011232,2]
[421814311,1778182243000,-500.0,0.00011232,2]
[421814296,1778182243000,-500.0,0.00011232,2]
[421814310,1778182243000,-500.0,0.00011232,2]
[421814309,1778182243000,-500.0,0.00011232,2]
[421814306,1778182243000,-609.28,0.00011232,2]
[421814295,1778182243000,-500.0,0.00011232,2]
[421814298,1778182243000,-351.59,0.00011232,2]
[421814300,1778182243000,-897.8,0.00011232,2]